[Event "Titled Tuesday Blitz May 9 Early 2023"]
[White "Zavortink, Matt"]
[Black "Barbot, Pierre"]
[WhiteFideId "2034263"]
[BlackFideId "663727"]
[WhiteElo "2463"]
[BlackElo "2431"]
[Result "0-1"]
[Round "10"]
[TimeControl "180+2"]
[Date "2023.05.09"]
[WhiteClock "0:00:00"]
[BlackClock "0:00:03"]

1. Nf3 {[%clk 0:03:00]}  Nf6 {[%clk 0:02:58]} 2. g3 {[%clk 0:03:01]}  d5 {[%clk 0:02:58]} 3. Bg2 {[%clk 0:03:01]}  g6 {[%clk 0:02:57]} 4. O-O {[%clk 0:03:00]}  Bg7 {[%clk 0:02:58]} 5. d4 {[%clk 0:03:00]}  O-O {[%clk 0:02:58]} 6. c4 {[%clk 0:03:00]}  dxc4 {[%clk 0:02:58]} 7. Na3 {[%clk 0:03:00]}  c3 {[%clk 0:02:58]} 8. bxc3 {[%clk 0:03:01]}  c5 {[%clk 0:02:52]} 9. Re1 {[%clk 0:03:01]}  Nc6 {[%clk 0:02:46]} 10. Bb2 {[%clk 0:03:01]}  a6 {[%clk 0:02:38]} 11. Nc4 {[%clk 0:02:56]}  Nd7 {[%clk 0:01:45]} 12. e4 {[%clk 0:02:42]}  Rb8 {[%clk 0:01:44]} 13. a4 {[%clk 0:02:27]}  b5 {[%clk 0:01:42]} 14. axb5 {[%clk 0:02:27]}  axb5 {[%clk 0:01:43]} 15. Ne3 {[%clk 0:02:21]}  cxd4 {[%clk 0:01:36]} 16. cxd4 {[%clk 0:02:19]}  Nb6 {[%clk 0:01:37]} 17. Qd2 {[%clk 0:01:59]}  Nc4 {[%clk 0:01:31]} 18. Nxc4 {[%clk 0:01:58]}  bxc4 {[%clk 0:01:32]} 19. h3 {[%clk 0:01:49]}  Nb4 {[%clk 0:01:22]} 20. Bc3 {[%clk 0:01:31]}  Nd3 {[%clk 0:01:20]} 21. Reb1 {[%clk 0:01:29]}  Bd7 {[%clk 0:01:11]} 22. Ne1 {[%clk 0:01:20]}  Nxe1 {[%clk 0:01:09]} 23. Qxe1 {[%clk 0:01:15]}  Qc8 {[%clk 0:01:01]} 24. Kh2 {[%clk 0:01:14]}  Rb3 {[%clk 0:00:48]} 25. Ra7 {[%clk 0:00:57]}  Be6 {[%clk 0:00:30]} 26. Rxe7 {[%clk 0:00:46]}  Qd8 {[%clk 0:00:25]} 27. Rb7 {[%clk 0:00:37]}  Bxd4 {[%clk 0:00:20]} 28. Bd2 {[%clk 0:00:19]}  Qc8 {[%clk 0:00:16]} 29. R7xb3 {[%clk 0:00:18]}  cxb3 {[%clk 0:00:17]} 30. Bf1 {[%clk 0:00:11]}  b2 {[%clk 0:00:17]} 31. Bd3 {[%clk 0:00:10]}  Qc5 {[%clk 0:00:16]} 32. Be3 {[%clk 0:00:10]}  Rb8 {[%clk 0:00:15]} 33. Bxd4 {[%clk 0:00:09]}  Qxd4 {[%clk 0:00:15]} 34. Qe2 {[%clk 0:00:09]}  Ba2 {[%clk 0:00:14]} 35. Rd1 {[%clk 0:00:08]}  Qc3 {[%clk 0:00:05]} 36. Bb1 {[%clk 0:00:07]}  Bxb1 {[%clk 0:00:05]} 37. Rxb1 {[%clk 0:00:07]}  Qc1 {[%clk 0:00:05]} 38. Qd3 {[%clk 0:00:07]}  Rc8 {[%clk 0:00:03]} 39. h4 {[%clk 0:00:05]}  Qc2 {[%clk 0:00:03]} 40. Qxc2 {[%clk 0:00:03]}  Rxc2 {[%clk 0:00:03]} 41. Kg2 {[%clk 0:00:03]}  Kg7 {[%clk 0:00:04]} 42. Kf3 {[%clk 0:00:03]}  Kf6 {[%clk 0:00:04]} 43. Ke3 {[%clk 0:00:04]}  Ke5 {[%clk 0:00:04]} 44. f4+ {[%clk 0:00:04]}  Kd6 {[%clk 0:00:04]} 45. g4 {[%clk 0:00:00]}  Rh2 {[%clk 0:00:03]} 0-1


[Site "https://www.chess.com"]

[Event "Titled Tuesday Blitz May 9 Early 2023"]
[White "koncheto"]
[Black "Dinu, Dumitru-Daniel"]
[BlackFideId "1208403"]
[WhiteElo "2459"]
[BlackElo "2240"]
[Result "1-0"]
[Round "10"]
[TimeControl "180+2"]
[Date "2023.05.09"]
[WhiteClock "0:02:16"]
[BlackClock "0:01:14"]

1. e4 {[%clk 0:02:59]}  c6 {[%clk 0:02:59]} 2. d4 {[%clk 0:02:58]}  d5 {[%clk 0:02:59]} 3. Nc3 {[%clk 0:02:58]}  dxe4 {[%clk 0:02:59]} 4. Nxe4 {[%clk 0:02:59]}  Nf6 {[%clk 0:02:59]} 5. Nxf6+ {[%clk 0:02:55]}  exf6 {[%clk 0:03:00]} 6. c3 {[%clk 0:02:56]}  Bd6 {[%clk 0:03:00]} 7. Bd3 {[%clk 0:02:57]}  O-O {[%clk 0:03:00]} 8. Ne2 {[%clk 0:02:58]}  Re8 {[%clk 0:03:00]} 9. O-O {[%clk 0:02:58]}  Nd7 {[%clk 0:03:00]} 10. Ng3 {[%clk 0:02:54]}  Nf8 {[%clk 0:02:57]} 11. f4 {[%clk 0:02:55]}  c5 {[%clk 0:02:53]} 12. d5 {[%clk 0:02:54]}  Ng6 {[%clk 0:02:46]} 13. f5 {[%clk 0:02:45]}  Ne5 {[%clk 0:02:46]} 14. Nh5 {[%clk 0:02:45]}  Nxd3 {[%clk 0:02:36]} 15. Qxd3 {[%clk 0:02:45]}  Qe7 {[%clk 0:02:35]} 16. Bd2 {[%clk 0:02:42]}  Qe2 {[%clk 0:02:22]} 17. Rae1 {[%clk 0:02:22]}  Qxd3 {[%clk 0:02:21]} 18. Rxe8+ {[%clk 0:02:22]}  Bf8 {[%clk 0:02:21]} 19. Nxf6+ {[%clk 0:02:22]}  gxf6 {[%clk 0:02:21]} 20. Bh6 {[%clk 0:02:22]}  Bd7 {[%clk 0:01:15]} 21. Rxa8 {[%clk 0:02:17]}  Qe3+ {[%clk 0:01:14]} 22. Bxe3 {[%clk 0:02:16]} 1-0


[Site "https://www.chess.com"]

[Event "Titled Tuesday Blitz May 9 Early 2023"]
[White "Shukhman, Anna"]
[Black "Szente Varga, Fruzsina"]
[WhiteFideId "54180058"]
[BlackFideId "712264"]
[WhiteElo "2235"]
[BlackElo "1994"]
[Result "1-0"]
[Round "10"]
[TimeControl "180+2"]
[Date "2023.05.09"]
[WhiteClock "0:02:23"]
[BlackClock "0:00:56"]

1. e4 {[%clk 0:03:00]}  e5 {[%clk 0:02:51]} 2. Nf3 {[%clk 0:03:00]}  Nc6 {[%clk 0:02:51]} 3. Bb5 {[%clk 0:03:00]}  a6 {[%clk 0:02:51]} 4. Ba4 {[%clk 0:03:00]}  Nf6 {[%clk 0:02:50]} 5. O-O {[%clk 0:03:00]}  Be7 {[%clk 0:02:49]} 6. Re1 {[%clk 0:03:00]}  b5 {[%clk 0:02:48]} 7. Bb3 {[%clk 0:03:00]}  O-O {[%clk 0:02:49]} 8. c3 {[%clk 0:03:00]}  d5 {[%clk 0:02:48]} 9. exd5 {[%clk 0:02:57]}  Nxd5 {[%clk 0:02:49]} 10. d4 {[%clk 0:02:55]}  exd4 {[%clk 0:02:45]} 11. Nxd4 {[%clk 0:02:52]}  Nxd4 {[%clk 0:02:29]} 12. Qxd4 {[%clk 0:02:53]}  Nb6 {[%clk 0:02:12]} 13. Qe4 {[%clk 0:02:47]}  Bf6 {[%clk 0:02:06]} 14. Bc2 {[%clk 0:02:43]}  g6 {[%clk 0:02:05]} 15. Bh6 {[%clk 0:02:42]}  Bf5 {[%clk 0:01:57]} 16. Qe2 {[%clk 0:02:40]}  Re8 {[%clk 0:01:50]} 17. Qxe8+ {[%clk 0:02:38]}  Qxe8 {[%clk 0:01:51]} 18. Rxe8+ {[%clk 0:02:38]}  Rxe8 {[%clk 0:01:52]} 19. Na3 {[%clk 0:02:38]}  Bxc2 {[%clk 0:01:46]} 20. Nxc2 {[%clk 0:02:37]}  Re2 {[%clk 0:01:42]} 21. Rc1 {[%clk 0:02:35]}  Nc4 {[%clk 0:01:30]} 22. Kf1 {[%clk 0:02:32]}  Re8 {[%clk 0:01:27]} 23. b3 {[%clk 0:02:31]}  Nd2+ {[%clk 0:01:25]} 24. Bxd2 {[%clk 0:02:30]}  Kg7 {[%clk 0:01:12]} 25. Ne3 {[%clk 0:02:29]}  Rd8 {[%clk 0:01:12]} 26. Ke2 {[%clk 0:02:28]}  h5 {[%clk 0:01:11]} 27. c4 {[%clk 0:02:27]}  bxc4 {[%clk 0:01:10]} 28. Rxc4 {[%clk 0:02:26]}  Be5 {[%clk 0:01:10]} 29. Bc3 {[%clk 0:02:26]}  Bxc3 {[%clk 0:01:09]} 30. Rxc3 {[%clk 0:02:27]}  Rd7 {[%clk 0:01:10]} 31. f4 {[%clk 0:02:27]}  f5 {[%clk 0:01:09]} 32. Nc4 {[%clk 0:02:25]}  Kf6 {[%clk 0:01:09]} 33. Ne5 {[%clk 0:02:25]}  Rd4 {[%clk 0:01:00]} 34. Rc6+ {[%clk 0:02:23]}  Ke7 {[%clk 0:00:59]} 35. Rxc7+ {[%clk 0:02:23]}  Kd8 {[%clk 0:00:56]} 36. Nc6+ {[%clk 0:02:23]} 1-0


[Site "https://www.chess.com"]

[Event "Titled Tuesday Blitz May 9 Early 2023"]
[White "Sarkar, Justin"]
[Black "Panda Sambit"]
[WhiteFideId "2010011"]
[BlackFideId "25091794"]
[WhiteElo "2168"]
[BlackElo "2272"]
[Result "1-0"]
[Round "10"]
[TimeControl "180+2"]
[Date "2023.05.09"]
[WhiteClock "0:00:04"]
[BlackClock "0:00:03"]

1. d4 {[%clk 0:02:55]}  Nf6 {[%clk 0:02:58]} 2. c4 {[%clk 0:02:53]}  e6 {[%clk 0:02:57]} 3. Nc3 {[%clk 0:02:47]}  Nc6 {[%clk 0:02:52]} 4. d5 {[%clk 0:02:41]}  Ne7 {[%clk 0:02:45]} 5. e4 {[%clk 0:02:37]}  d6 {[%clk 0:02:45]} 6. f4 {[%clk 0:02:26]}  Ng6 {[%clk 0:02:41]} 7. Nf3 {[%clk 0:02:22]}  Be7 {[%clk 0:02:41]} 8. Bd3 {[%clk 0:02:12]}  c6 {[%clk 0:02:37]} 9. f5 {[%clk 0:01:56]}  exf5 {[%clk 0:02:29]} 10. exf5 {[%clk 0:01:56]}  Ne5 {[%clk 0:02:30]} 11. O-O {[%clk 0:01:24]}  Qb6+ {[%clk 0:02:27]} 12. Kh1 {[%clk 0:01:23]}  O-O {[%clk 0:02:14]} 13. Bg5 {[%clk 0:00:23]}  Re8 {[%clk 0:02:07]} 14. Nxe5 {[%clk 0:00:16]}  dxe5 {[%clk 0:02:06]} 15. Qc2 {[%clk 0:00:15]}  Bd7 {[%clk 0:01:47]} 16. Rad1 {[%clk 0:00:14]}  cxd5 {[%clk 0:01:47]} 17. Bxf6 {[%clk 0:00:13]}  Qxf6 {[%clk 0:01:30]} 18. Nxd5 {[%clk 0:00:13]}  Qh4 {[%clk 0:01:31]} 19. f6 {[%clk 0:00:13]}  gxf6 {[%clk 0:01:21]} 20. Bf5 {[%clk 0:00:11]}  Bc6 {[%clk 0:01:18]} 21. Rd3 {[%clk 0:00:10]}  Bxd5 {[%clk 0:00:48]} 22. cxd5 {[%clk 0:00:10]}  Qb4 {[%clk 0:00:23]} 23. Bxh7+ {[%clk 0:00:09]}  Kf8 {[%clk 0:00:23]} 24. Rg3 {[%clk 0:00:09]}  Bd6 {[%clk 0:00:24]} 25. Qf2 {[%clk 0:00:05]}  Qf4 {[%clk 0:00:20]} 26. Rf3 {[%clk 0:00:05]}  Qd4 {[%clk 0:00:18]} 27. Rxf6 {[%clk 0:00:04]}  Qxf2 {[%clk 0:00:18]} 28. R1xf2 {[%clk 0:00:05]}  Kg7 {[%clk 0:00:15]} 29. Rxf7+ {[%clk 0:00:04]}  Kh8 {[%clk 0:00:15]} 30. Be4 {[%clk 0:00:04]}  Rf8 {[%clk 0:00:13]} 31. g3 {[%clk 0:00:04]}  Kg8 {[%clk 0:00:12]} 32. Bh7+ {[%clk 0:00:03]}  Kh8 {[%clk 0:00:11]} 33. Kg2 {[%clk 0:00:03]}  Bc5 {[%clk 0:00:09]} 34. Rxf8+ {[%clk 0:00:03]}  Bxf8 {[%clk 0:00:10]} 35. Rf7 {[%clk 0:00:03]}  Bc5 {[%clk 0:00:09]} 36. Be4 {[%clk 0:00:03]}  b6 {[%clk 0:00:09]} 37. d6 {[%clk 0:00:02]}  Rd8 {[%clk 0:00:09]} 38. d7 {[%clk 0:00:02]}  Kg8 {[%clk 0:00:10]} 39. Bd5 {[%clk 0:00:03]}  Kh8 {[%clk 0:00:10]} 40. Kf3 {[%clk 0:00:03]}  a5 {[%clk 0:00:08]} 41. Ke4 {[%clk 0:00:03]}  Bd4 {[%clk 0:00:09]} 42. Re7 {[%clk 0:00:03]}  Rxd7 {[%clk 0:00:05]} 43. Rxd7 {[%clk 0:00:03]}  Bxb2 {[%clk 0:00:05]} 44. Kf5 {[%clk 0:00:03]}  e4 {[%clk 0:00:04]} 45. Kg6 {[%clk 0:00:04]}  Be5 {[%clk 0:00:03]} 46. Rh7# {[%clk 0:00:04]} 1-0


[Site "https://www.chess.com"]

[Event "Titled Tuesday Blitz May 9 Early 2023"]
[White "Avazkhonov, Alikhon"]
[Black "Levitan, Caleb Levi"]
[WhiteFideId "14208504"]
[BlackFideId "14332620"]
[WhiteElo "1739"]
[BlackElo "1963"]
[Result "1-0"]
[Round "10"]
[TimeControl "180+2"]
[Date "2023.05.09"]
[WhiteClock "0:01:44"]
[BlackClock "0:00:09"]

1. d4 {[%clk 0:02:52]}  d5 {[%clk 0:02:58]} 2. c4 {[%clk 0:02:53]}  e6 {[%clk 0:02:58]} 3. Nc3 {[%clk 0:02:54]}  a6 {[%clk 0:02:58]} 4. cxd5 {[%clk 0:02:54]}  exd5 {[%clk 0:02:57]} 5. Nf3 {[%clk 0:02:54]}  Nf6 {[%clk 0:02:57]} 6. Bg5 {[%clk 0:02:54]}  Be6 {[%clk 0:02:58]} 7. e3 {[%clk 0:02:54]}  Nbd7 {[%clk 0:02:57]} 8. Bd3 {[%clk 0:02:55]}  Bd6 {[%clk 0:02:57]} 9. Qc2 {[%clk 0:02:55]}  c6 {[%clk 0:02:57]} 10. O-O-O {[%clk 0:02:55]}  Qc7 {[%clk 0:02:12]} 11. Kb1 {[%clk 0:02:51]}  O-O {[%clk 0:02:11]} 12. Rdg1 {[%clk 0:02:46]}  b5 {[%clk 0:01:58]} 13. g4 {[%clk 0:02:43]}  c5 {[%clk 0:01:53]} 14. Bxf6 {[%clk 0:02:17]}  Nxf6 {[%clk 0:01:29]} 15. g5 {[%clk 0:02:17]}  Nd7 {[%clk 0:01:06]} 16. Bxh7+ {[%clk 0:02:13]}  Kh8 {[%clk 0:01:07]} 17. Bf5 {[%clk 0:02:14]}  b4 {[%clk 0:01:00]} 18. Ne2 {[%clk 0:02:11]}  cxd4 {[%clk 0:00:50]} 19. Nexd4 {[%clk 0:02:08]}  Qxc2+ {[%clk 0:00:50]} 20. Kxc2 {[%clk 0:02:09]}  Rac8+ {[%clk 0:00:46]} 21. Kb1 {[%clk 0:02:06]}  Bxf5+ {[%clk 0:00:46]} 22. Nxf5 {[%clk 0:02:07]}  Bb8 {[%clk 0:00:44]} 23. Rc1 {[%clk 0:02:02]}  g6 {[%clk 0:00:41]} 24. Ne7 {[%clk 0:02:02]}  Rxc1+ {[%clk 0:00:37]} 25. Rxc1 {[%clk 0:02:03]}  f6 {[%clk 0:00:20]} 26. Nxg6+ {[%clk 0:01:50]}  Kg7 {[%clk 0:00:18]} 27. Nxf8 {[%clk 0:01:50]}  Nxf8 {[%clk 0:00:18]} 28. gxf6+ {[%clk 0:01:51]}  Kxf6 {[%clk 0:00:19]} 29. Rc6+ {[%clk 0:01:50]}  Ne6 {[%clk 0:00:20]} 30. Rxa6 {[%clk 0:01:50]}  Kf5 {[%clk 0:00:16]} 31. Rb6 {[%clk 0:01:46]}  Nc5 {[%clk 0:00:11]} 32. Rxb8 {[%clk 0:01:45]}  Ne4 {[%clk 0:00:10]} 33. Nd4+ {[%clk 0:01:44]}  Kg4 {[%clk 0:00:09]} 1-0


[Site "https://www.chess.com"]

[Event "Titled Tuesday Blitz May 9 Early 2023"]
[White "Mike24147"]
[Black "Jaivardhan Raj"]
[BlackFideId "25744437"]
[WhiteElo "2329"]
[BlackElo "1772"]
[Result "1-0"]
[Round "10"]
[TimeControl "180+2"]
[Date "2023.05.09"]
[WhiteClock "0:00:09"]
[BlackClock "0:00:09"]

1. e4 {[%clk 0:02:59]}  c5 {[%clk 0:02:59]} 2. Nf3 {[%clk 0:02:59]}  e6 {[%clk 0:03:00]} 3. d4 {[%clk 0:02:59]}  cxd4 {[%clk 0:03:00]} 4. Nxd4 {[%clk 0:02:59]}  Nc6 {[%clk 0:03:00]} 5. Nc3 {[%clk 0:03:00]}  a6 {[%clk 0:03:01]} 6. Nxc6 {[%clk 0:02:59]}  bxc6 {[%clk 0:02:59]} 7. Bd3 {[%clk 0:02:59]}  Qc7 {[%clk 0:02:58]} 8. O-O {[%clk 0:02:59]}  Nf6 {[%clk 0:02:59]} 9. Qe2 {[%clk 0:02:58]}  d5 {[%clk 0:02:58]} 10. Bg5 {[%clk 0:02:46]}  d4 {[%clk 0:02:52]} 11. Nd1 {[%clk 0:02:40]}  c5 {[%clk 0:02:46]} 12. c3 {[%clk 0:02:29]}  Bb7 {[%clk 0:02:40]} 13. cxd4 {[%clk 0:02:27]}  cxd4 {[%clk 0:02:38]} 14. Rc1 {[%clk 0:02:25]}  Qb6 {[%clk 0:02:31]} 15. Kh1 {[%clk 0:02:00]}  Nd7 {[%clk 0:02:23]} 16. f4 {[%clk 0:01:58]}  f6 {[%clk 0:02:13]} 17. Bh4 {[%clk 0:01:56]}  Nc5 {[%clk 0:02:11]} 18. Nf2 {[%clk 0:01:33]}  Be7 {[%clk 0:01:55]} 19. e5 {[%clk 0:01:21]}  f5 {[%clk 0:01:36]} 20. Bxe7 {[%clk 0:01:18]}  Kxe7 {[%clk 0:01:37]} 21. a3 {[%clk 0:00:48]}  Qc6 {[%clk 0:01:33]} 22. Rg1 {[%clk 0:00:46]}  Qb6 {[%clk 0:01:22]} 23. b4 {[%clk 0:00:46]}  Nd7 {[%clk 0:01:20]} 24. Rc2 {[%clk 0:00:38]}  Rac8 {[%clk 0:01:18]} 25. Rgc1 {[%clk 0:00:39]}  Rxc2 {[%clk 0:01:15]} 26. Rxc2 {[%clk 0:00:40]}  Rc8 {[%clk 0:01:14]} 27. Rxc8 {[%clk 0:00:36]}  Bxc8 {[%clk 0:01:14]} 28. Qh5 {[%clk 0:00:36]}  Qc6 {[%clk 0:01:11]} 29. Qd1 {[%clk 0:00:14]}  Bb7 {[%clk 0:01:09]} 30. Bf1 {[%clk 0:00:14]}  Qd5 {[%clk 0:01:06]} 31. Nd3 {[%clk 0:00:14]}  Bc6 {[%clk 0:01:01]} 32. Qc2 {[%clk 0:00:14]}  g6 {[%clk 0:00:57]} 33. Kg1 {[%clk 0:00:14]}  Nb6 {[%clk 0:00:54]} 34. h3 {[%clk 0:00:11]}  Nc4 {[%clk 0:00:52]} 35. Qf2 {[%clk 0:00:10]}  Ne3 {[%clk 0:00:51]} 36. Nc5 {[%clk 0:00:08]}  Nxf1 {[%clk 0:00:48]} 37. Qxf1 {[%clk 0:00:08]}  Bb5 {[%clk 0:00:47]} 38. Qd1 {[%clk 0:00:05]}  d3 {[%clk 0:00:45]} 39. a4 {[%clk 0:00:04]}  Qd4+ {[%clk 0:00:42]} 40. Kh1 {[%clk 0:00:02]}  Bc6 {[%clk 0:00:42]} 41. Qxd3 {[%clk 0:00:01]}  Qxd3 {[%clk 0:00:38]} 42. Nxd3 {[%clk 0:00:02]}  Bxa4 {[%clk 0:00:37]} 43. Nc5 {[%clk 0:00:02]}  Bb5 {[%clk 0:00:37]} 44. Kg1 {[%clk 0:00:02]}  Bc4 {[%clk 0:00:36]} 45. Kf2 {[%clk 0:00:03]}  Kd8 {[%clk 0:00:36]} 46. g3 {[%clk 0:00:03]}  Kc7 {[%clk 0:00:36]} 47. Ke3 {[%clk 0:00:03]}  Kb6 {[%clk 0:00:34]} 48. Kd4 {[%clk 0:00:03]}  Bd5 {[%clk 0:00:33]} 49. Nd7+ {[%clk 0:00:03]}  Kb5 {[%clk 0:00:33]} 50. Kc3 {[%clk 0:00:03]}  Bg2 {[%clk 0:00:32]} 51. h4 {[%clk 0:00:03]}  Kc6 {[%clk 0:00:26]} 52. Nf8 {[%clk 0:00:03]}  Kd5 {[%clk 0:00:21]} 53. Nxh7 {[%clk 0:00:04]}  Bh3 {[%clk 0:00:18]} 54. Nf8 {[%clk 0:00:04]}  Bg4 {[%clk 0:00:18]} 55. Nxg6 {[%clk 0:00:05]}  Bh5 {[%clk 0:00:17]} 56. Ne7+ {[%clk 0:00:04]}  Ke4 {[%clk 0:00:17]} 57. Ng8 {[%clk 0:00:04]}  Kf3 {[%clk 0:00:17]} 58. Nf6 {[%clk 0:00:04]}  Bf7 {[%clk 0:00:14]} 59. h5 {[%clk 0:00:05]}  Kxg3 {[%clk 0:00:14]} 60. h6 {[%clk 0:00:05]}  Bg6 {[%clk 0:00:14]} 61. h7 {[%clk 0:00:05]}  Bxh7 {[%clk 0:00:14]} 62. Nxh7 {[%clk 0:00:06]}  Kxf4 {[%clk 0:00:14]} 63. Kd4 {[%clk 0:00:06]}  Kg3 {[%clk 0:00:12]} 64. Ng5 {[%clk 0:00:06]}  f4 {[%clk 0:00:12]} 65. Ke4 {[%clk 0:00:05]}  Kg4 {[%clk 0:00:10]} 66. Nxe6 {[%clk 0:00:06]}  f3 {[%clk 0:00:10]} 67. Nd4 {[%clk 0:00:06]}  f2 {[%clk 0:00:10]} 68. Nf3 {[%clk 0:00:04]}  Kg3 {[%clk 0:00:08]} 69. Nd2 {[%clk 0:00:05]}  Kg2 {[%clk 0:00:05]} 70. e6 {[%clk 0:00:05]}  f1=Q {[%clk 0:00:05]} 71. Nxf1 {[%clk 0:00:05]}  Kxf1 {[%clk 0:00:06]} 72. e7 {[%clk 0:00:05]}  Kf2 {[%clk 0:00:07]} 73. e8=Q {[%clk 0:00:06]}  Ke2 {[%clk 0:00:07]} 74. Qa4 {[%clk 0:00:07]}  Kd2 {[%clk 0:00:08]} 75. Qxa6 {[%clk 0:00:07]}  Kc3 {[%clk 0:00:09]} 76. b5 {[%clk 0:00:08]}  Kb4 {[%clk 0:00:09]} 77. b6 {[%clk 0:00:08]}  Kc5 {[%clk 0:00:10]} 78. b7 {[%clk 0:00:09]}  Kb4 {[%clk 0:00:10]} 79. Qc6 {[%clk 0:00:09]}  Ka5 {[%clk 0:00:10]} 80. Kd5 {[%clk 0:00:08]}  Kb4 {[%clk 0:00:10]} 81. b8=Q+ {[%clk 0:00:08]}  Ka5 {[%clk 0:00:09]} 82. Qca8# {[%clk 0:00:09]} 1-0


[Site "https://www.chess.com"]

[Event "Titled Tuesday Blitz May 9 Early 2023"]
[White "Iskusnyh, Sergei"]
[Black "petr577"]
[WhiteFideId "4120027"]
[WhiteElo "2492"]
[BlackElo "2221"]
[Result "1-0"]
[Round "10"]
[TimeControl "180+2"]
[Date "2023.05.09"]
[WhiteClock "0:00:46"]
[BlackClock "0:00:09"]

1. d4 {[%clk 0:01:49]}  Nf6 {[%clk 0:02:59]} 2. c4 {[%clk 0:01:49]}  e5 {[%clk 0:02:58]} 3. dxe5 {[%clk 0:01:49]}  Ng4 {[%clk 0:02:59]} 4. e3 {[%clk 0:01:49]}  Nxe5 {[%clk 0:02:58]} 5. Nh3 {[%clk 0:01:49]}  Nbc6 {[%clk 0:02:55]} 6. Nf4 {[%clk 0:01:48]}  g5 {[%clk 0:02:53]} 7. Nd5 {[%clk 0:01:47]}  Bg7 {[%clk 0:02:53]} 8. Be2 {[%clk 0:01:47]}  O-O {[%clk 0:02:53]} 9. O-O {[%clk 0:01:47]}  d6 {[%clk 0:02:54]} 10. Nbc3 {[%clk 0:01:47]}  Ne7 {[%clk 0:02:50]} 11. Nxe7+ {[%clk 0:01:45]}  Qxe7 {[%clk 0:02:51]} 12. b3 {[%clk 0:01:45]}  c6 {[%clk 0:02:51]} 13. Ba3 {[%clk 0:01:42]}  Rd8 {[%clk 0:02:50]} 14. Qc2 {[%clk 0:01:42]}  g4 {[%clk 0:02:42]} 15. Rad1 {[%clk 0:01:41]}  Be6 {[%clk 0:02:37]} 16. Rfe1 {[%clk 0:01:39]}  Rd7 {[%clk 0:02:34]} 17. Ne4 {[%clk 0:01:38]}  Rad8 {[%clk 0:02:32]} 18. Ng3 {[%clk 0:01:38]}  Qg5 {[%clk 0:02:26]} 19. e4 {[%clk 0:01:37]}  h5 {[%clk 0:02:18]} 20. Bc1 {[%clk 0:01:37]}  Qg6 {[%clk 0:02:07]} 21. Nf5 {[%clk 0:01:37]}  Bxf5 {[%clk 0:01:58]} 22. exf5 {[%clk 0:01:38]}  Qf6 {[%clk 0:01:58]} 23. Bf4 {[%clk 0:01:37]}  Bh6 {[%clk 0:01:52]} 24. Qc1 {[%clk 0:01:30]}  Kg7 {[%clk 0:01:32]} 25. Bf1 {[%clk 0:01:29]}  Bxf4 {[%clk 0:01:25]} 26. Qxf4 {[%clk 0:01:29]}  Ng6 {[%clk 0:01:21]} 27. Qe4 {[%clk 0:01:26]}  Re7 {[%clk 0:01:18]} 28. Qd3 {[%clk 0:01:22]}  Rxe1 {[%clk 0:01:17]} 29. Rxe1 {[%clk 0:01:23]}  Nh4 {[%clk 0:01:16]} 30. h3 {[%clk 0:01:20]}  Nxf5 {[%clk 0:01:13]} 31. hxg4 {[%clk 0:01:20]}  hxg4 {[%clk 0:01:14]} 32. g3 {[%clk 0:01:19]}  Rd7 {[%clk 0:01:04]} 33. Re4 {[%clk 0:01:18]}  Nh6 {[%clk 0:00:59]} 34. Be2 {[%clk 0:01:17]}  Qa1+ {[%clk 0:00:46]} 35. Kg2 {[%clk 0:01:17]}  f5 {[%clk 0:00:41]} 36. Rd4 {[%clk 0:01:14]}  Qxa2 {[%clk 0:00:27]} 37. Qe3 {[%clk 0:01:14]}  Nf7 {[%clk 0:00:24]} 38. Qe6 {[%clk 0:01:11]}  Rd8 {[%clk 0:00:18]} 39. Qxf5 {[%clk 0:01:10]}  Qxe2 {[%clk 0:00:17]} 40. Rxg4+ {[%clk 0:01:10]}  Kf8 {[%clk 0:00:17]} 41. Qh7 {[%clk 0:01:07]}  Re8 {[%clk 0:00:11]} 42. Rf4 {[%clk 0:01:01]}  Qe6 {[%clk 0:00:10]} 43. b4 {[%clk 0:00:47]}  Re7 {[%clk 0:00:09]} 44. Qh8# {[%clk 0:00:46]} 1-0


[Site "https://www.chess.com"]

[Event "Titled Tuesday Blitz May 9 Early 2023"]
[White "Mrudul Dehankar"]
[Black "Mohammed, Zozek Salah Mohammed"]
[WhiteFideId "25096990"]
[BlackFideId "4803361"]
[WhiteElo "2139"]
[BlackElo "2211"]
[Result "0-1"]
[Round "10"]
[TimeControl "180+2"]
[Date "2023.05.09"]
[WhiteClock "0:00:00"]
[BlackClock "0:00:54"]

1. e4 {[%clk 0:02:55]}  e6 {[%clk 0:02:48]} 2. d4 {[%clk 0:02:53]}  d5 {[%clk 0:02:46]} 3. e5 {[%clk 0:02:54]}  c5 {[%clk 0:02:43]} 4. c3 {[%clk 0:02:53]}  Nc6 {[%clk 0:02:43]} 5. Nf3 {[%clk 0:02:52]}  Qb6 {[%clk 0:02:42]} 6. Bd3 {[%clk 0:02:53]}  cxd4 {[%clk 0:02:40]} 7. O-O {[%clk 0:02:53]}  Bd7 {[%clk 0:02:31]} 8. Re1 {[%clk 0:02:52]}  Nge7 {[%clk 0:02:26]} 9. h4 {[%clk 0:02:51]}  a6 {[%clk 0:02:23]} 10. Nbd2 {[%clk 0:02:39]}  Rc8 {[%clk 0:02:15]} 11. Nb3 {[%clk 0:02:25]}  dxc3 {[%clk 0:02:14]} 12. bxc3 {[%clk 0:02:23]}  Na5 {[%clk 0:02:11]} 13. Be3 {[%clk 0:02:20]}  Qc7 {[%clk 0:02:07]} 14. Nxa5 {[%clk 0:01:25]}  Qxa5 {[%clk 0:02:08]} 15. Bd2 {[%clk 0:01:26]}  Qc7 {[%clk 0:02:03]} 16. h5 {[%clk 0:01:23]}  Nc6 {[%clk 0:01:58]} 17. Rb1 {[%clk 0:01:12]}  Na5 {[%clk 0:01:55]} 18. h6 {[%clk 0:01:10]}  g6 {[%clk 0:01:53]} 19. Rc1 {[%clk 0:00:45]}  Nc4 {[%clk 0:01:48]} 20. Bg5 {[%clk 0:00:45]}  Be7 {[%clk 0:01:38]} 21. Qe2 {[%clk 0:00:41]}  Bxg5 {[%clk 0:01:30]} 22. Nxg5 {[%clk 0:00:41]}  O-O {[%clk 0:01:30]} 23. Qf3 {[%clk 0:00:32]}  Qd8 {[%clk 0:01:24]} 24. Qg3 {[%clk 0:00:23]}  Qe7 {[%clk 0:01:10]} 25. Rc2 {[%clk 0:00:10]}  b5 {[%clk 0:01:09]} 26. Rce2 {[%clk 0:00:10]}  a5 {[%clk 0:01:07]} 27. Bb1 {[%clk 0:00:08]}  b4 {[%clk 0:01:06]} 28. cxb4 {[%clk 0:00:08]}  axb4 {[%clk 0:01:07]} 29. Rd1 {[%clk 0:00:07]}  Na3 {[%clk 0:00:58]} 30. Bd3 {[%clk 0:00:06]}  Bb5 {[%clk 0:00:56]} 31. Bxb5 {[%clk 0:00:04]}  Nxb5 {[%clk 0:00:57]} 32. Qf4 {[%clk 0:00:04]}  Nc3 {[%clk 0:00:56]} 33. Rde1 {[%clk 0:00:03]}  Nxe2+ {[%clk 0:00:55]} 34. Rxe2 {[%clk 0:00:03]}  Rc4 {[%clk 0:00:55]} 35. Qd2 {[%clk 0:00:03]}  Rfc8 {[%clk 0:00:55]} 36. Qd3 {[%clk 0:00:00]}  Qxg5 {[%clk 0:00:54]} 0-1


[Site "https://www.chess.com"]